bitfinex-derivatives/quotes_ETHF0:USTF0_20250606
["timestamp","ask_amount","ask_price","bid_price","bid_amount"]
[1749201852431,0.81184583,2480.7,2480.4,5.30468]
[1749201852635,0.00604583,2480.7,2480.5,0.80585]
[1749201852836,0.00604583,2480.7,2480.6,1.3097]
[1749201853028,0.81183583,2480.7,2480.6,1.3097]
[1749201853637,0.00604583,2480.7,2480.6,1.3097]
[1749201853829,0.81183583,2480.7,2480.6,1.3097]
[1749201854231,0.00604583,2480.7,2480.6,7.11552]
[1749201854433,0.00604583,2480.7,2480.6,6.3097]
[1749201854643,0.00604583,2480.7,2480.6,8.34552]
[1749201855340,0.81183583,2480.7,2480.6,1.3097]
[1749201855542,0.00604583,2480.7,2480.5,0.6857]
[1749201855839,0.81185583,2480.7,2480.5,0.6857]
[1749201856145,0.80582,2480.6,2480.5,0.6857]
[1749201856746,0.80585,2480.5,2480.4,3.2078]
[1749201858038,0.80585,2480.5,2480.3,0.00604583]
[1749201858039,0.80589,2480.4,2480.3,0.00604583]
[1749201859447,2.16349,2480.4,2480.3,0.00604583]
[1749201859639,2.16349,2480.4,2480.3,5.83e-06]
[1749201860648,7.23482351,2480.4,2480.3,5.83e-06]
[1749201864348,2.23482351,2480.4,2480.3,5.83e-06]
[1749201864546,7.23482351,2480.4,2480.3,5.83e-06]
[1749201865447,31.62082351,2480.4,2480.3,5.83e-06]
[1749201866152,37.62282351,2480.4,2480.3,5.83e-06]
[1749201866359,58.12682351,2480.4,2480.3,5.83e-06]
[1749201869048,58.78782351,2480.4,2480.3,5.83e-06]
[1749201869251,25.26322351,2480.4,2480.3,5.83e-06]
[1749201869552,2.21422351,2480.4,2480.3,5.83e-06]
[1749201869852,7.21422351,2480.4,2480.3,5.83e-06]
[1749201874863,27.60022351,2480.4,2480.3,5.83e-06]
[1749201878567,0.80624,2479.4,2479.3,1.18461849]
[1749201878870,0.80624,2479.4,2479.3,2.48524037]
[1749201879059,0.80624,2479.4,2479.3,1.30062188]
[1749201880564,0.80624,2479.4,2479.3,3.83874037]
[1749201881070,6.003,2479.6,2479.3,3.83874037]
[1749201881272,21.08621,2479.5,2479.4,1.30062188]
[1749201881569,21.08621,2479.5,2479.4,2.59372188]
[1749201883059,21.08621,2479.5,2479.4,1.30062188]
[1749201883667,24.29401,2479.5,2479.4,1.30062188]
[1749201884064,0.80631,2479.2,2479.1,0.00604583]
[1749201884264,10.01811,2479.2,2479.1,1.30668839]
[1749201886880,4.01411,2479.2,2479.1,1.30668839]
[1749201887379,3.2078,2479.2,2479.1,1.30668839]
[1749201887679,4.01411,2479.2,2479.1,3.79860688]
[1749201888279,4.01411,2479.2,2479.1,2.61398839]
[1749201889373,3.2078,2479.2,2479.1,3.79860688]
[1749201889580,4.01411,2479.2,2479.1,3.79860688]
[1749201891182,4.08544351,2479.2,2479.1,8.79860688]
[1749201891481,4.08544351,2479.2,2479.1,3.79860688]
[1749201891976,0.87764351,2479.2,2479.1,3.79860688]
[1749201894878,0.87764351,2479.2,2479.1,2.61398839]
[1749201896685,0.87764351,2479.2,2479.1,1.30668839]
[1749201897184,0.87764351,2479.2,2479.1,2.69238839]
[1749201898677,0.87764351,2479.2,2479.1,1.30668839]
[1749201899578,6.65164351,2479.2,2479.1,1.30668839]
[1749201900277,7.98354351,2479.2,2479.1,0.00604583]
[1749201901284,7.98354351,2479.2,2479.1,5.83e-06]
[1749201901679,2.20954351,2479.2,2479.1,5.83e-06]
[1749201901986,20.86964351,2479.2,2479.1,5.83e-06]
[1749201902183,0.87764351,2479.2,2479.1,5.83e-06]
[1749201902481,0.87764351,2479.2,2479.1,1.30312115]
[1749201903583,20.86464351,2479.2,2479.1,1.30312115]
[1749201904882,20.84667351,2479.2,2479.1,1.30312115]
[1749201909686,22.14687351,2479.2,2479.1,5.83e-06]
[1749201910883,27.14687351,2479.2,2479.1,5.83e-06]
[1749201911083,0.87767351,2479.2,2479.1,5.83e-06]
[1749201911286,0.87767351,2479.2,2479.1,1.3003666]
[1749201911681,0.07133351,2479.2,2479.1,1.3003666]
[1749201911888,0.07133351,2479.2,2479.1,7.1067366]
[1749201912187,0.07133351,2479.2,2479.1,10.77162264]
[1749201912887,0.07133351,2479.2,2479.1,9.96525264]
[1749201913093,0.07133351,2479.2,2479.1,10.77162264]
[1749201913385,0.07133351,2479.2,2479.1,9.96525264]
[1749201913994,0.87767351,2479.2,2479.1,9.96525264]
[1749201914587,0.07133351,2479.2,2479.1,10.8010666]
[1749201915393,0.07133351,2479.2,2479.1,13.17305264]
[1749201915687,0.07133351,2479.2,2479.1,10.8010666]
[1749201915886,0.07133351,2479.2,2479.1,13.17305264]
[1749201917393,0.07133351,2479.2,2479.1,7.38458111]
[1749201917790,0.87767351,2479.2,2479.1,7.38458111]
[1749201917988,0.87767351,2479.2,2479.1,5.8010666]
[1749201918298,0.87767351,2479.2,2479.1,1.3003666]
[1749201921697,0.87767351,2479.2,2479.1,5.83e-06]
[1749201921698,7.19397351,2479.2,2479.1,5.83e-06]
[1749201922596,31.59197351,2479.2,2479.1,5.83e-06]
[1749201926093,51.43797351,2479.2,2479.1,5.83e-06]
[1749201927693,4.03188,2479.1,2478.3,1.18760424]
[1749201927900,50.63163351,2479.2,2478.4,1.29433551]
[1749201927901,0.80657,2478.5,2478.4,1.29433551]
[1749201928097,26.24757,2478.5,2478.4,1.29433551]
[1749201928298,2.01655,2478.4,2478.0,1.18760424]
[1749201928595,0.07133351,2479.2,2478.2,2.01667]
[1749201928798,0.00604583,2479.4,2479.1,4.01414]
[1749201929092,0.00604583,2479.4,2479.2,5.51309163]
[1749201929399,0.00604583,2479.4,2479.3,4.21359163]
[1749201929596,0.81231583,2479.4,2479.3,2.48086235]
[1749201929900,0.81231583,2479.4,2479.3,1.29546241]
[1749201930396,26.46531583,2479.4,2479.3,1.29546241]
[1749201930793,0.80631,2479.3,2479.2,0.6621]
[1749201930995,0.80631,2479.3,2479.2,1.95568755]
[1749201931295,0.80631,2479.3,2479.2,1.29358755]
[1749201933100,2.01587,2479.2,2478.8,4.39319994]
[1749201933301,0.8064,2479.0,2478.9,1.29340714]
[1749201933504,6.4264,2479.0,2478.9,1.29340714]
[1749201935699,6.49773351,2479.0,2478.9,1.29340714]
[1749201936699,0.87773351,2479.0,2478.9,1.29340714]
[1749201936898,26.45273351,2479.0,2478.9,1.29340714]
[1749201937105,26.45273351,2479.0,2478.9,2.57230714]
[1749201937406,0.07133351,2479.0,2478.9,8.75770708]
[1749201937700,0.07133351,2479.0,2478.9,7.57230714]
[1749201938499,0.07133351,2479.0,2478.9,2.57230714]
[1749201938699,0.07133351,2479.0,2478.9,7.57230714]
[1749201939498,0.07133351,2479.0,2478.9,9.15403636]
[1749201940101,0.87773351,2479.0,2478.9,9.15403636]
[1749201941302,0.87773351,2479.0,2478.9,2.57230714]
[1749201941696,0.87773351,2479.0,2478.9,1.29340714]
[1749201950010,0.07133351,2479.0,2478.9,1.29340714]
[1749201950207,0.87766351,2479.0,2478.9,2.57600714]
[1749201950398,19.86133351,2479.0,2478.9,2.57600714]
[1749201950602,20.66766351,2479.0,2478.9,2.57600714]
[1749201952706,20.66766351,2479.0,2478.9,3.76209253]
[1749201952908,20.63866351,2479.0,2478.9,3.76209253]
[1749201953409,0.87766351,2479.0,2478.9,3.76209253]
[1749201953611,20.63066351,2479.0,2478.9,3.76209253]
[1749201953803,20.62765351,2479.0,2478.9,3.76209253]
[1749201954111,0.07133351,2479.0,2478.9,3.76209253]
[1749201954405,5.541,2480.1,2479.0,2.01578]
[1749201954609,20.57396,2480.1,2480.0,3.2078]
[1749201954809,20.57396,2480.1,2480.0,4.50120714]
[1749201955615,0.80596,2480.1,2480.0,3.2078]
[1749201955913,26.10296,2480.1,2480.0,3.2078]
[1749201956310,26.10296,2480.1,2480.0,4.49988683]
[1749201958013,26.06996,2480.1,2480.0,4.49988683]
[1749201958313,26.06996,2480.1,2480.0,3.2078]
[1749201958812,26.06196,2480.1,2480.0,4.49844004]
[1749201959015,26.05796,2480.1,2480.0,4.49844004]
[1749201959202,0.80596,2480.1,2480.0,4.49844004]
[1749201959803,0.80596,2480.1,2480.0,3.2078]
[1749201960404,0.00604583,2480.3,2480.0,5.68536607]
[1749201960608,0.80591,2480.2,2480.1,1.29035907]
[1749201961910,0.81193583,2480.3,2480.2,1.29035907]
[1749201964820,0.80594,2480.1,2480.0,3.2078]
[1749201965415,0.80594,2480.1,2479.8,0.00604583]
[1749201965416,0.80601,2479.9,2479.8,0.00604583]
[1749201965618,6.34601,2479.9,2479.8,0.00604583]
[1749201965820,0.80601,2479.9,2479.8,0.00604583]
[1749201966022,26.00901,2479.9,2479.8,1.31171932]
[1749201966415,26.00901,2479.9,2479.8,0.00604583]
[1749201967914,27.28581,2479.9,2479.8,0.00604583]
[1749201971920,0.80607,2479.7,2479.6,3.2078]
[1749201973124,0.80614,2479.5,2479.4,0.00604583]
[1749201973320,25.93214,2479.5,2479.4,0.00604583]
[1749201977431,6.34614,2479.5,2479.4,0.00604583]
[1749201977730,25.89014,2479.5,2479.4,0.00604583]
[1749201978432,25.87914,2479.5,2479.4,0.00604583]
[1749201979437,25.87014,2479.5,2479.4,0.00604583]
[1749201979829,25.86314,2479.5,2479.4,0.00604583]
[1749201980036,25.86314,2479.5,2479.4,1.31700379]
[1749201980237,25.86014,2479.5,2479.4,1.31700379]
[1749201980436,25.93147351,2479.5,2479.4,1.31700379]
[1749201981341,25.92247351,2479.5,2479.4,1.31700379]
[1749201981542,27.30267351,2479.5,2479.4,0.00604583]
[1749201983338,27.28667351,2479.5,2479.4,0.00604583]
[1749201986338,27.28667351,2479.5,2479.4,5.83e-06]
[1749201987645,30.49447351,2479.5,2479.4,5.83e-06]
[1749201988147,35.49447351,2479.5,2479.4,5.83e-06]
[1749201993344,30.49447351,2479.5,2479.4,5.83e-06]
[1749201993548,35.49447351,2479.5,2479.4,5.83e-06]
[1749201994449,30.49447351,2479.5,2479.4,5.83e-06]
[1749201994750,35.49447351,2479.5,2479.4,5.83e-06]
[1749201995346,30.49447351,2479.5,2479.4,5.83e-06]
[1749201996152,0.80627,2479.1,2479.0,3.20700583]
[1749201996347,6.18527,2479.1,2479.0,4.51990099]
[1749201996948,6.44144117,2479.1,2479.0,4.51990099]
[1749201998253,6.44144117,2479.1,2479.0,1.31289516]
[1749201999547,0.80637,2478.8,2478.7,4.395007]
[1749201999741,0.80637,2478.8,2478.7,5.70948514]
[1749201999943,20.15037,2478.8,2478.7,5.70948514]
[1749202000757,20.15037,2478.8,2478.7,2.50168514]
[1749202001251,20.15037,2478.8,2478.7,1.31447814]
[1749202004750,0.8065,2478.6,2478.5,0.6798]
[1749202004946,6.1855,2478.6,2478.5,0.6798]
[1749202005552,0.80656,2478.4,2478.3,1.187207]
[1749202006551,0.80659,2478.3,2478.2,1.187207]
[1749202007652,0.80662,2478.2,2478.1,5.48239058]
[1749202007852,6.18562,2478.2,2478.1,5.48239058]
[1749202008054,6.18562,2478.2,2478.1,3.8995]
[1749202009354,6.18562,2478.2,2478.0,2.95849058]
[1749202009355,0.80666,2478.1,2478.0,1.58289058]
[1749202009555,0.80672,2477.9,2477.8,3.2078]
[1749202009950,0.80672,2477.9,2477.6,0.6662]
[1749202009951,0.80679,2477.7,2477.6,0.6662]
[1749202010154,6.18679,2477.7,2477.6,0.6662]
[1749202010456,6.18679,2477.7,2477.1,0.6491]
[1749202010457,0.80694,2477.2,2477.1,5.04847881]
[1749202010652,0.80694,2477.2,2477.1,3.8569]
[1749202011149,0.80694,2477.2,2477.1,5.21]
[1749202011546,0.80694,2477.2,2477.1,4.5609]
[1749202011750,0.80694,2477.2,2477.1,3.2078]
[1749202012259,0.80703,2476.9,2476.8,0.6345]
[1749202012556,8.5878,2477.3,2476.8,2.0259]
[1749202012858,3.2078,2477.3,2476.8,2.0259]
[1749202013063,0.80697,2477.1,2477.0,3.2078]
[1749202017259,20.08397,2477.1,2477.0,3.2078]
[1749202018769,0.80693,2477.3,2477.0,8.2078]
[1749202019057,19.27504583,2477.4,2477.1,1.3526]
[1749202019265,19.27504583,2477.4,2477.3,3.2078]
[1749202019266,0.00604583,2477.4,2477.3,3.2078]
[1749202019568,0.00604583,2477.4,2477.3,5.85294556]
[1749202019765,0.00604583,2477.4,2477.3,10.85294556]
[1749202020368,0.00604583,2477.4,2477.3,10.85309849]
[1749202020563,0.81291583,2477.4,2477.3,10.85309849]
[1749202021364,0.00604583,2477.4,2477.3,5.85309849]
[1749202021665,0.81291583,2477.4,2477.3,5.85309849]
[1749202022367,0.00604583,2477.4,2477.3,5.85309849]
[1749202023166,0.00604583,2477.4,2477.3,10.85309849]
[1749202024066,0.00604583,2477.4,2477.3,11.65999849]
[1749202024376,0.00604583,2477.4,2477.3,10.85309849]
[1749202025170,0.00604583,2477.4,2477.3,12.03817015]
[1749202025866,0.00604583,2477.4,2477.3,10.85309849]
[1749202026271,0.07737934,2477.4,2477.3,10.85309849]
[1749202026972,0.07737934,2477.4,2477.3,11.66076359]
[1749202027174,0.07737934,2477.4,2477.3,12.8472013]
[1749202027365,0.07737934,2477.4,2477.3,7.8472013]
[1749202027562,0.07737934,2477.4,2477.3,5.85386359]
[1749202027767,0.07737934,2477.4,2477.3,6.66076359]
[1749202028666,0.07737934,2477.4,2477.3,7.8472013]
[1749202032371,0.07737934,2477.4,2477.3,6.66076359]
[1749202033279,0.07133351,2477.4,2477.3,14.03484369]
[1749202033578,0.07133351,2477.4,2477.3,11.66076359]
[1749202033974,0.07133351,2477.4,2477.3,19.29722085]
[1749202036273,0.07133351,2477.4,2477.3,19.29897525]
[1749202036467,0.07133351,2477.4,2477.3,9.04097525]
[1749202037078,0.07133351,2477.4,2477.3,6.66076359]
[1749202043995,0.07133351,2477.4,2477.3,5.30816359]
[1749202044294,0.07133351,2477.4,2477.3,7.69221581]
[1749202044699,0.07133351,2477.4,2477.3,5.30816359]
[1749202045601,0.07133351,2477.4,2477.3,7.69221581]
[1749202046896,0.07133351,2477.4,2477.3,7.69479654]
[1749202047693,3.27913351,2477.4,2477.3,1.29346359]
[1749202048095,4.62553351,2477.4,2477.3,1.29346359]
[1749202048495,10.65346351,2477.4,2477.3,1.29346359]
[1749202049000,34.89246351,2477.4,2477.3,0.17118425]
[1749202049201,34.89246351,2477.4,2477.1,0.00604583]
[1749202049202,0.80699,2477.2,2477.1,0.00604583]
[1749202049698,5.80699,2477.2,2477.1,0.00604583]
[1749202049906,0.80716,2476.7,2476.6,1.19411579]
[1749202050196,0.80725,2476.4,2476.3,1.19411579]
[1749202050401,0.80725,2476.4,2476.1,1.19411579]
[1749202050697,7.40629,2476.3,2476.1,1.19411579]
[1749202050897,6.599,2476.3,2476.0,4.40191579]
[1749202051104,0.80733,2476.2,2476.0,3.2078]
[1749202051303,1.378,2476.1,2476.0,3.2078]
[1749202051595,2.18535,2476.1,2476.0,3.2078]
[1749202051993,1.378,2476.1,2476.0,3.2078]
[1749202052604,6.378,2476.1,2475.6,1.19411579]
[1749202052796,0.80747,2475.8,2475.4,1.19411579]
[1749202052998,5.8973,2475.7,2475.3,5.08741579]
[1749202053202,7.2735,2475.7,2475.3,4.70091]
[1749202053402,26.5135,2475.7,2475.3,4.70091]
[1749202053699,26.5135,2475.7,2475.3,4.7009]
[1749202054802,26.5135,2475.7,2475.3,3.8933]
[1749202055004,26.5135,2475.7,2475.3,4.70088]
[1749202055204,26.5135,2475.7,2475.4,0.80758]
[1749202055705,26.58483351,2475.7,2475.3,3.8933]
[1749202055898,26.58483351,2475.7,2475.6,3.2078]
[1749202056093,27.39231351,2475.7,2475.6,3.2078]
[1749202057102,0.80757,2475.5,2475.3,3.2078]
[1749202057309,0.80756,2475.5,2475.3,3.2078]
[1749202057502,26.58483351,2475.7,2474.9,2.7337]
[1749202057503,5.22659,2475.6,2474.9,4.5633]
[1749202057801,0.8077,2475.1,2474.9,3.2078]
[1749202058001,6.0307,2475.1,2474.9,3.2078]
[1749202058606,0.80771,2475.0,2474.9,3.2078]
[1749202059108,6.0307,2475.1,2474.9,3.2078]
[1749202059306,0.80771,2475.0,2474.9,3.2078]
[1749202059609,0.80771,2475.0,2474.2,1.58114299]
[1749202059610,2.01938,2474.9,2474.0,3.2078]
[1749202059920,0.0060584,2474.7,2474.1,2.02002]
[1749202060209,5.29533351,2475.7,2474.6,3.2078]
[1749202060408,0.80759,2475.4,2474.9,0.80772]
[1749202060710,5.224,2475.3,2475.1,4.01548]
[1749202060912,5.224,2475.3,2475.1,3.2078]
[1749202061611,0.80765,2475.2,2475.1,3.2078]
[1749202061907,0.80768,2475.1,2475.0,0.0060584]
[1749202062111,2.12038,2475.1,2475.0,0.0060584]
[1749202063713,7.34538,2475.1,2475.0,0.0060584]
[1749202064211,2.0250584,2475.4,2475.0,3.2138584]
[1749202064212,1.3855584,2475.4,2475.0,3.2138584]
[1749202064516,0.80763,2475.3,2475.0,3.2138584]
[1749202064704,0.80766,2475.2,2475.0,3.2138584]
[1749202065106,0.80768,2475.1,2475.0,3.2138584]
[1749202065613,6.03265,2475.3,2475.0,3.2138584]
[1749202065810,0.80765,2475.2,2475.0,3.2138584]
[1749202066410,6.6045,2475.3,2475.0,3.2138584]
[1749202066411,26.66814,2475.3,2475.0,3.2138584]
[1749202067110,0.80765,2475.2,2475.0,3.2138584]
[1749202067515,25.8605,2475.3,2475.0,3.2138584]
[1749202067717,25.8605,2475.3,2475.0,0.0060584]
[1749202067914,0.80768,2475.1,2475.0,0.0060584]
[1749202068818,0.80766,2475.2,2475.0,0.0060584]
[1749202069017,25.8605,2475.3,2475.0,0.0060584]
[1749202069425,0.80768,2475.1,2475.0,0.0060584]
[1749202070010,0.80767,2475.2,2475.0,0.0060584]
[1749202070318,5.225,2475.1,2475.0,0.0060584]
[1749202071119,0.87897351,2475.3,2475.0,0.8137684]
[1749202071316,5.29733351,2475.3,2475.2,0.80765]
[1749202072123,6.10496351,2475.3,2475.1,2.75605]
[1749202072319,5.29733351,2475.3,2475.2,0.80765]
[1749202073021,0.07133351,2475.3,2475.2,0.80765]
[1749202073328,0.07133351,2475.3,2475.2,2.0763251]
[1749202073624,0.87894351,2475.3,2475.2,1.2686751]
[1749202073824,0.80765,2475.2,2475.1,1.9484]
[1749202074025,0.80765,2475.2,2475.1,3.21713027]
[1749202074427,0.80765,2475.2,2475.1,1.90533027]
[1749202074824,0.80768,2475.1,2475.0,3.2138584]
[1749202076219,0.80768,2475.1,2475.0,4.48656271]
[1749202077822,0.80766,2475.2,2475.0,5.29426271]
[1749202078017,0.80766,2475.2,2475.1,1.27270431]
[1749202078419,0.87895351,2475.3,2475.1,2.08037431]
[1749202078631,0.87895351,2475.3,2475.2,1.27270431]
[1749202078830,6.10195351,2475.3,2475.2,1.27270431]
[1749202079427,6.10195351,2475.3,2475.2,2.45653691]
[1749202081030,7.46945351,2475.3,2475.2,2.45653691]
[1749202081924,0.07133351,2475.3,2475.2,2.45653691]
[1749202082130,5.29433351,2475.3,2475.2,2.8538473]
[1749202082320,6.10194351,2475.3,2475.2,2.8538473]
[1749202082731,0.07133351,2475.3,2475.2,3.6614973]
[1749202082925,0.87894351,2475.3,2475.2,1.27270431]
[1749202084234,0.87894351,2475.3,2475.2,2.8674549]
[1749202085228,2.26114351,2475.3,2475.2,2.8674549]
[1749202085532,2.26114351,2475.3,2475.2,1.27270431]
[1749202086829,2.26114351,2475.3,2475.2,2.46962496]
[1749202087236,0.80765,2475.2,2475.1,1.19692065]
[1749202087432,0.80768,2475.1,2475.0,1.20297905]
[1749202087627,6.03068,2475.1,2475.0,0.0060584]
[1749202087823,12.41288,2475.1,2475.0,0.0060584]
[1749202089128,2.01932,2475.0,2474.6,1.19692065]
[1749202089431,0.80784,2474.6,2474.5,1.19692065]
[1749202089630,6.03184,2474.6,2474.5,1.19692065]
[1749202092637,0.80787,2474.5,2474.4,4.40472065]
[1749202093139,0.80787,2474.5,2474.4,4.40378457]
[1749202093337,0.80787,2474.5,2474.4,1.19598457]
[1749202093638,2.14717,2474.5,2474.4,1.19598457]
[1749202094140,0.80787,2474.5,2474.4,1.19598457]
[1749202094437,0.80794,2474.3,2474.2,1.59475059]
[1749202095139,0.80797,2474.2,2474.1,4.80255059]
[1749202095336,6.03197,2474.2,2474.1,4.80255059]
[1749202095734,24.48,2474.3,2474.1,4.80255059]
[1749202095935,0.80789,2474.5,2474.3,0.80793]
[1749202096236,3.2078,2474.8,2474.4,1.19501905]
[1749202096442,3.2078,2474.8,2474.5,2.00288905]
[1749202096443,5.225,2474.6,2474.5,2.00288905]
[1749202096638,3.2078,2474.8,2474.5,2.75917]
[1749202096843,0.80783,2474.7,2474.6,1.8233461]
[1749202099240,0.80783,2474.7,2474.6,3.08490027]
[1749202099637,8.4328,2474.8,2474.7,0.80781]
[1749202099638,3.2078,2474.8,2474.7,0.80781]
[1749202099840,3.2078,2475.1,2474.9,0.80772]
[1749202100042,0.80768,2475.1,2475.0,1.26155417]
[1749202100544,0.80768,2475.1,2475.0,4.46935417]
[1749202102441,0.80767,2475.2,2475.0,4.46935417]
[1749202102646,5.224,2475.2,2475.1,1.26155417]
[1749202102945,5.224,2475.2,2475.1,2.06923417]
[1749202103740,5.224,2475.2,2475.1,1.26155417]
[1749202103940,5.224,2475.2,2475.1,2.53115417]
[1749202104138,6.03165,2475.2,2475.1,2.53115417]
[1749202104440,5.224,2475.2,2475.1,2.53115417]
[1749202104640,5.224,2475.2,2475.1,3.33883417]
[1749202105247,6.03165,2475.2,2475.1,2.53115417]
[1749202105646,6.03165,2475.2,2475.1,1.26155417]
[1749202105839,6.03165,2475.2,2475.1,2.45584142]
[1749202106045,6.03165,2475.2,2475.1,1.26155417]
[1749202106857,5.224,2475.2,2475.1,3.26352142]
[1749202107361,29.6630584,2475.4,2475.3,0.80761]
[1749202107558,30.4706384,2475.4,2475.3,1.26155417]
[1749202109663,6.0346384,2475.4,2475.3,1.26155417]
[1749202112161,5.2270584,2475.4,2475.3,1.26155417]
[1749202112358,0.0060584,2475.4,2475.3,5.27696417]
[1749202112861,0.8136384,2475.4,2475.3,4.46935417]
[1749202113360,0.0060584,2475.4,2475.3,5.27696417]
[1749202113558,0.8136384,2475.4,2475.3,4.46935417]
[1749202114663,0.88497191,2475.4,2475.3,4.46935417]
[1749202114867,0.88497191,2475.4,2475.3,1.26155417]
[1749202115362,2.25047191,2475.4,2475.3,1.26155417]
[1749202117163,0.80768,2475.1,2475.0,4.40181799]
[1749202117463,0.80768,2475.1,2475.0,4.46006556]
[1749202117464,6.02868,2475.1,2475.0,4.46006556]
[1749202118664,6.67598,2475.1,2475.0,4.46006556]
[1749202119170,6.67598,2475.1,2475.0,1.25226556]
[1749202119469,0.80775,2474.9,2474.7,4.40181799]
[1749202119667,0.80775,2474.9,2474.8,1.25372981]
[1749202119962,5.29839191,2475.4,2474.8,3.27316981]
[1749202120159,5.29839191,2475.4,2475.1,0.80767]
[1749202120160,6.10598191,2475.4,2475.1,0.80767]
[1749202120364,6.10598191,2475.4,2475.2,1.25372981]
[1749202120668,5.29839191,2475.4,2475.3,1.25372981]
[1749202120869,6.10597191,2475.4,2475.3,1.25372981]
[1749202121261,5.29839191,2475.4,2475.3,1.25372981]
[1749202121974,6.10597191,2475.4,2475.3,1.25372981]
[1749202125379,7.40917191,2475.4,2475.3,1.25372981]
[1749202125676,8.10387191,2475.4,2475.3,1.25372981]
[1749202126976,13.10387191,2475.4,2475.3,1.25372981]
[1749202130477,8.10387191,2475.4,2475.3,1.25372981]
[1749202130673,27.34587191,2475.4,2475.3,1.25372981]
[1749202131072,8.10387191,2475.4,2475.3,1.25372981]
[1749202131283,27.34587191,2475.4,2475.3,1.25372981]
[1749202131579,32.34587191,2475.4,2475.3,1.25372981]
[1749202133175,31.53829191,2475.4,2475.0,1.19422993]
[1749202133370,0.80768,2475.1,2475.0,1.19422993]
[1749202133677,0.80771,2475.0,2474.9,1.19422993]
[1749202133873,0.80771,2475.0,2474.9,2.44919135]
[1749202133874,6.02871,2475.0,2474.9,2.44919135]
[1749202137382,5.215,2475.0,2474.9,2.44919135]
[1749202137676,5.215,2475.2,2475.1,0.80766]
[1749202137880,5.215,2475.2,2475.1,5.27042142]
[1749202138076,5.215,2475.2,2475.1,6.86793385]
[1749202138883,0.80765,2475.2,2475.1,6.86793385]
[1749202139275,0.80765,2475.2,2475.1,6.06027385]
[1749202139682,0.80765,2475.2,2475.1,6.86795385]
[1749202140380,0.80765,2475.2,2475.1,6.06027385]
[1749202140576,0.80765,2475.2,2475.1,4.80531243]
[1749202140777,0.80765,2475.2,2475.1,6.05984459]
[1749202141180,0.80765,2475.2,2475.1,4.46233216]
[1749202141678,0.80765,2475.2,2475.1,5.66079505]
[1749202141979,0.80765,2475.2,2475.1,4.46233216]
[1749202143580,0.80762,2475.3,2475.1,4.46233216]
[1749202143882,0.80761,2475.3,2475.2,3.74314088]
[1749202145383,0.80761,2475.3,2475.2,1.25453216]
[1749202145876,5.2210584,2475.4,2475.2,1.25453216]
[1749202145877,0.0060584,2475.4,2475.3,0.80761]
[1749202146175,24.4570584,2475.4,2475.3,2.06214216]
[1749202146482,25.2646384,2475.4,2475.3,1.25453216]
[1749202146976,0.80761,2475.3,2475.2,0.80762]
[1749202147181,0.87894351,2475.3,2475.2,0.80762]
[1749202147778,0.87894351,2475.3,2475.2,3.25502198]
[1749202148278,0.87894351,2475.3,2475.2,3.65449453]
[1749202148580,0.07133351,2475.3,2475.2,3.65449453]
[1749202148776,0.87894351,2475.3,2475.2,3.65449453]
[1749202148979,0.07133351,2475.3,2475.2,3.65449453]
[1749202149179,0.07133351,2475.3,2475.2,2.05660434]
[1749202150074,0.07133351,2475.3,2475.2,4.45260231]
[1749202150276,0.87894351,2475.3,2475.2,2.05660434]
[1749202150483,0.07133351,2475.3,2475.2,4.45241807]
[1749202151887,0.87894351,2475.3,2475.2,4.45241807]
[1749202153487,0.07133351,2475.3,2475.2,4.45241807]
[1749202158492,0.07133351,2475.3,2474.4,5.59261569]
[1749202158684,0.07133351,2475.3,2474.0,2.39708752]
[1749202158685,7.517,2474.1,2474.0,2.39708752]
[1749202158889,3.2078,2474.1,2473.3,0.6889]
[1749202159085,0.0060584,2473.9,2473.8,0.8081]
[1749202159989,0.0060584,2473.9,2473.8,2.1277]
[1749202161386,0.07739191,2473.9,2473.8,2.1277]
[1749202161994,0.07739191,2473.9,2473.8,7.1277]
[1749202163390,4.69892,2474.7,2473.9,2.02014]
[1749202163592,4.01561,2474.7,2474.5,0.80785]
[1749202163890,0.80785,2474.6,2474.3,0.80792]
[1749202164096,3.2078,2474.7,2474.4,0.8079]
[1749202164291,4.01564,2474.7,2474.4,0.8079]
[1749202164694,0.80784,2474.6,2474.4,0.8079]
[1749202165191,0.80784,2474.6,2474.3,0.8139784]
[1749202165391,0.80787,2474.6,2474.3,0.8139684]
[1749202165597,0.80785,2474.6,2474.4,0.80789]
[1749202166096,0.80785,2474.6,2474.4,0.80791]
[1749202166601,0.80786,2474.6,2474.4,0.80791]
[1749202166892,0.8079,2474.5,2474.4,0.80791]
[1749202167094,0.80789,2474.5,2474.3,0.8139784]
[1749202167287,4.01571,2474.4,2474.3,0.0060584]
[1749202169801,4.01571,2474.4,2474.2,0.51089347]
[1749202170101,3.2078,2474.4,2474.2,0.51089347]
[1749202170600,4.01571,2474.4,2474.2,0.51089347]
[1749202170999,0.80794,2474.3,2474.1,0.808]
[1749202171297,3.2078,2474.4,2474.2,0.80797]
[1749202171499,4.01572,2474.4,2474.3,0.80794]
[1749202171895,4.01572,2474.4,2474.2,0.80795]
[1749202172201,4.01572,2474.4,2474.3,0.80794]
[1749202172402,3.2078,2474.4,2474.3,0.80794]
[1749202174701,0.07133351,2474.4,2474.3,0.80794]
[1749202175004,3.2078,2474.7,2474.6,0.80784]
[1749202175698,0.0060584,2474.8,2474.7,0.80781]
[1749202175904,3.2078,2475.2,2475.1,0.80768]
[1749202176104,4.01545,2475.2,2475.1,0.80768]
[1749202177203,0.8077,2475.1,2475.0,0.80769]
[1749202177399,0.80771,2475.0,2474.9,0.0060584]
[1749202179006,0.80771,2475.0,2474.9,0.8137984]
[1749202179195,0.80771,2475.0,2474.9,0.0060584]
[1749202181699,0.8077,2475.1,2474.9,0.8137984]
[1749202182001,1.279,2475.0,2474.9,0.8137984]
[1749202183001,0.80769,2475.1,2474.9,0.8137884]
[1749202183198,3.2078,2475.2,2474.9,0.0060584]
[1749202183398,2.1709,2475.1,2474.9,0.8137884]
[1749202185405,1.3632,2475.1,2474.9,0.8137884]
[1749202185601,2.1709,2475.1,2474.9,0.0060584]
[1749202186502,0.80771,2475.0,2474.9,0.0060584]
[1749202186702,2.81941,2475.0,2474.9,0.0060584]
[1749202187698,1.49921,2475.0,2474.9,0.0060584]
[1749202189898,1.57054351,2475.0,2474.9,0.0060584]
[1749202191910,0.87904351,2475.0,2474.9,0.0060584]
[1749202193209,20.22004351,2475.0,2474.9,0.0060584]
[1749202195611,20.22004351,2475.0,2474.9,0.8137984]
[1749202195811,0.87904351,2475.0,2474.9,0.8137984]